fUSD/lending_fUSD_20260217
["ID","MTS","AMOUNT","RATE_DAILY","PERIOD"]
[405824626,1771341053551,-250.0,0.00017808,20]
[405824627,1771341053561,-250.0,0.00017808,20]
[405824628,1771341053570,-250.0,0.00017808,20]
[405824629,1771341053580,-250.0,0.00017808,20]
[405824630,1771341053589,-250.0,0.00017808,20]
[405824631,1771341053599,-250.0,0.00017808,20]
[405824632,1771341053609,-250.0,0.00017808,20]
[405824633,1771341053619,-250.0,0.00017808,20]
[405824634,1771341053629,-250.0,0.00017808,20]
[405824635,1771341053638,-250.0,0.00017808,20]
[405824636,1771341053648,-250.0,0.00017808,20]
[405824637,1771341053658,-250.0,0.00017808,20]
[405824638,1771341053667,-250.0,0.00017808,20]
[405824639,1771341053677,-250.0,0.00017808,20]
[405824640,1771341053687,-250.0,0.00017808,20]
[405824641,1771341053696,-250.0,0.00017808,20]
[405824642,1771341053706,-250.0,0.00017808,20]
[405824643,1771341053716,-250.0,0.00017808,20]
[405824644,1771341053726,-250.0,0.00017808,20]
[405824645,1771341053736,-250.0,0.00017808,20]
[405824646,1771341053746,-250.0,0.00017808,20]
[405824647,1771341053756,-250.0,0.00017808,20]
[405824648,1771341053767,-250.0,0.00017808,20]
[405824649,1771341053777,-250.0,0.00017808,20]
[405824650,1771341053787,-250.0,0.00017808,20]
[405824651,1771341053797,-250.0,0.00017808,20]
[405824652,1771341053807,-250.0,0.00017808,20]
[405824653,1771341053817,-250.0,0.00017808,20]
[405824654,1771341053827,-250.0,0.00017808,20]
[405824655,1771341053838,-250.0,0.00017808,20]
[405824656,1771341053848,-250.0,0.00017808,20]
[405824657,1771341053858,-250.0,0.00017808,20]
[405824658,1771341053868,-250.0,0.00017808,20]
[405824659,1771341053878,-250.0,0.00017808,20]
[405824660,1771341053888,-250.0,0.00017808,20]
[405824661,1771341053899,-250.0,0.00017808,20]
[405824662,1771341053908,-250.0,0.00017808,20]
[405824663,1771341053919,-250.0,0.00017808,20]
[405824664,1771341053929,-250.0,0.00017808,20]
[405824665,1771341053939,-250.0,0.00017808,20]
[405824666,1771341053949,-250.0,0.00017808,20]
[405824667,1771341053959,-352.04167,0.00017808,20]
[405824668,1771341053969,-151.0,0.00017808,2]
[405824669,1771341053979,-151.0,0.00017808,2]
[405824670,1771341053988,-151.0,0.00017808,2]
[405824671,1771341053997,-151.0,0.00017808,2]
[405824672,1771341054007,-151.0,0.00017808,2]
[405824673,1771341054018,-151.0,0.00017808,2]
[405824674,1771341054028,-154.469161,0.00017808,2]
[405824675,1771341054037,-1468.6865633,0.00017816,2]
[405824676,1771341054047,-472440.3959335,0.00017816,2]
[405824677,1771341054057,-2000.0,0.0001782,2]
[405824678,1771341054067,-2000.0,0.0001782,2]
[405824679,1771341054077,-500.0,0.00017855,2]
[405824680,1771341054087,-500.0,0.00017856,2]
[405824681,1771341054097,-200.0,0.00017856,2]
[405824682,1771341054107,-350.0,0.00017898,2]
[405824683,1771341054118,-4587.476,0.000179,2]
[405824684,1771341054128,-32850.4601,0.000179,2]
[405824685,1771341054137,-259.7041,0.000179,2]
[405824686,1771341054147,-10000.0,0.000179,2]
[405824687,1771341054157,-1000.0,0.000179,2]
[405824688,1771341054169,-25000.0,0.000179,3]
[405824689,1771341054179,-290.83641756,0.000179,2]
[405824690,1771341054188,-10445.66962567,0.000179,2]
[405824691,1771341054199,-160.0,0.00017924,2]
[405824692,1771341054209,-168.3888056,0.00017924,2]
[405824693,1771341054218,-500.0,0.00017973,2]
[405824694,1771341054228,-500.0,0.00017973,2]
[405824695,1771341054239,-163.87964352,0.00017973,2]
[405824696,1771341054248,-500.0,0.00017973,2]
[405824697,1771341054258,-504.09468333,0.00017973,2]
[405824698,1771341054268,-501.23450591,0.00017973,2]
[405824699,1771341054277,-505.14943602,0.00017973,2]
[405824700,1771341054287,-500.0,0.00017973,2]
[405824701,1771341054297,-500.0,0.00017973,2]
[405824702,1771341054307,-500.0,0.00017973,2]
[405824703,1771341054317,-500.0,0.00017973,2]
[405824704,1771341054327,-500.0,0.00017973,2]
[405824705,1771341054336,-500.0,0.00017973,2]
[405824706,1771341054346,-500.0,0.00017973,2]
[405824707,1771341054356,-500.0,0.00017973,2]
[405824708,1771341054365,-525.66819458,0.00017973,2]
[405824709,1771341054375,-500.0,0.00017973,2]
[405824710,1771341054385,-502.68727614,0.00017973,2]
[405824711,1771341054394,-500.0,0.00017973,2]
[405824712,1771341054403,-500.0,0.00017973,2]
[405824713,1771341054413,-500.0,0.00017973,2]
[405824714,1771341054422,-502.15975128,0.00017973,2]
[405824715,1771341054431,-161.87499248,0.00017973,2]
[405824716,1771341054440,-503.17452108,0.00017973,2]
[405824717,1771341054450,-514.27467488,0.00017973,2]
[405824718,1771341054459,-500.0,0.00017973,2]
[405824719,1771341054469,-160.44342054,0.00017973,2]
[405824720,1771341054478,-160.29464371,0.00017973,2]
[405824721,1771341054488,-500.0,0.00017973,2]
[405824722,1771341054497,-500.0,0.00017973,2]
[405824723,1771341054507,-501.86536618,0.00017973,2]
[405824724,1771341054518,-504.64635869,0.00017973,2]
[405824725,1771341054527,-151.02975848,0.00017973,2]
[405824726,1771341054536,-502.22718587,0.00017973,2]
[405824727,1771341054545,-500.0,0.00017973,2]
[405824728,1771341054555,-500.0,0.00017973,2]
[405824729,1771341054564,-161.95965132,0.00017973,2]
[405824730,1771341054574,-162.40112722,0.00017973,2]
[405824731,1771341054584,-500.29634492,0.00017973,2]
[405824732,1771341054593,-436.04334629,0.00017973,2]
[405824733,1771341054602,-285.23122629,0.00017973,2]
[405824734,1771341054612,-500.0,0.00017973,2]
[405824735,1771341054621,-501.43225284,0.00017973,2]
[405824736,1771341054630,-500.0,0.00017973,2]
[405824737,1771341054640,-503.05494034,0.00017973,2]
[405824738,1771341054649,-500.0,0.00017973,2]
[405824739,1771341054658,-500.0,0.00017973,2]
[405824740,1771341054668,-500.0,0.00017973,2]
[405824741,1771341054678,-500.0,0.00017973,2]
[405824742,1771341054687,-500.0,0.00017973,2]
[405824743,1771341054697,-161.02829907,0.00017973,2]
[405824744,1771341054707,-500.93096914,0.00017973,2]
[405824745,1771341054717,-502.80271569,0.00017973,2]
[405824746,1771341054726,-500.0,0.00017973,2]
[405824747,1771341054736,-569.45122683,0.00017973,2]
[405824748,1771341054745,-377.76526068,0.00017973,2]
[405824749,1771341054755,-500.0,0.00017973,2]
[405824750,1771341054768,-597.93872342,0.00017973,2]
[405824751,1771341054777,-500.0,0.00017973,2]
[405824752,1771341054787,-186.11515271,0.00017973,2]
[405824753,1771341054796,-947.1253165,0.00017982,2]
[405824754,1771341054806,-226.42090261,0.00017982,2]
[405824755,1771341054816,-300.0,0.00017999,2]
[405824756,1771341054825,-300.0,0.00017999,2]
[405824757,1771341054834,-666.0,0.00017999,2]
[405824758,1771341054844,-666.0,0.00017999,2]
[405824759,1771341054854,-300.0,0.00017999,2]
[405824760,1771341054863,-300.0,0.00017999,2]
[405824761,1771341054873,-666.0,0.00017999,2]
[405824762,1771341054883,-300.0,0.00017999,2]
[405824763,1771341054893,-300.0,0.00017999,2]
[405824764,1771341054902,-150.0,0.00017999,2]
[405824765,1771341054912,-150.0,0.00017999,2]
[405824766,1771341054923,-150.0,0.00017999,2]
[405824767,1771341054932,-150.0,0.00017999,2]
[405824768,1771341054943,-150.0,0.00017999,2]
[405824769,1771341054952,-150.0,0.00017999,2]
[405824770,1771341054962,-150.0,0.00017999,2]
[405824771,1771341054971,-150.0,0.00017999,2]
[405824772,1771341054981,-150.0,0.00017999,2]
[405824773,1771341054991,-150.0,0.00017999,2]
[405824774,1771341055000,-166.80967626,0.00017999,2]
[405824775,1771341055012,-28610.11146738,0.00017999,2]
[405824776,1771341055022,-262.13935403,0.00018,2]
[405824777,1771341055032,-238546.69398018,0.00018,2]
[405824778,1771341055041,-7514.99024711,0.00018,2]
[405824779,1771341055051,-70287.04519593,0.00018,2]
[405824780,1771341055061,-3580503.92853972,0.00018,2]
[405824781,1771341055690,-1173.55341429,0.00018,2]
[405824782,1771341055702,-15872.94042967,0.00018,2]
[405824783,1771341055713,-6251.23825511,0.00018,2]
[405824784,1771341055729,-1430.0,0.00018,2]
[405824785,1771341055952,-502.12798245,0.00010779,2]
[405824786,1771341055961,-5912.45308229,0.000109,2]
[405824787,1771341055970,-404680.3980689,0.00018,2]
[405824788,1771341055982,-297.48940477,0.00018,2]
[405824789,1771341056007,-342.3228072,0.00018,2]
[405824790,1771341056020,-2639472.32751713,0.00018,2]
[405824791,1771341056386,-500.0,0.00017973,2]
[405824792,1771341056395,-8489.88403811,0.00018,2]
[405824793,1771341056406,-7425.92632835,0.00018,2]
[405824794,1771341056417,-937.70955075,0.00018,2]
[405824795,1771341056429,-300.96,0.00018,2]
[405824796,1771341056647,-22782.42563271,0.00018,2]
[405824797,1771341056858,-345.48,0.000109,2]
[405824798,1771341056870,-5566.97308229,0.000109,2]
[405824799,1771341056880,-87114.83177881,0.00018,2]
[405824800,1771341056892,-41758.94812058,0.00018,2]
[405824801,1771341057491,-34481.35665208,0.00018,2]
[405824802,1771341126230,201.86692456,6.529e-05,2]
[405824803,1771341139777,500.0,6.529e-05,2]
[405824804,1771341139841,500.0,6.529e-05,2]
[405824805,1771341140078,500.0,6.529e-05,2]
[405824806,1771341140703,500.0,6.529e-05,2]
[405824807,1771341140751,500.0,6.529e-05,2]
[405824808,1771341140989,500.0,6.529e-05,2]
[405824809,1771341141039,150.69956918,6.529e-05,2]
[405824810,1771341141619,500.0,6.529e-05,2]
[405824811,1771341141668,500.0,6.529e-05,2]
[405824812,1771341141976,500.0,6.529e-05,2]
[405824813,1771341142032,500.0,6.529e-05,2]
[405824814,1771341142074,500.0,6.529e-05,2]
[405824815,1771341142126,500.0,6.529e-05,2]
[405824816,1771341142169,500.0,6.529e-05,2]
[405824817,1771341142225,500.0,6.529e-05,2]
[405824818,1771341142289,500.0,6.529e-05,2]
[405824819,1771341142358,500.0,6.529e-05,2]
[405824820,1771341142863,500.0,6.529e-05,2]
[405824821,1771341142939,500.0,6.529e-05,2]
[405824822,1771341142982,500.0,6.529e-05,2]
[405824823,1771341143049,147.44350626,6.529e-05,2]
[405824824,1771341143076,352.55649374,6.529e-05,2]
[405824825,1771341143377,500.0,6.529e-05,2]
[405824826,1771341143421,500.0,6.529e-05,2]
[405824827,1771341144018,500.0,6.529e-05,2]
[405824828,1771341144074,500.0,6.529e-05,2]
[405824829,1771341144191,500.0,6.529e-05,2]
[405824831,1771341154795,500.0,6.529e-05,2]
[405824832,1771341154837,500.0,6.529e-05,2]
[405824833,1771341154884,500.0,6.529e-05,2]
[405824834,1771341154927,500.0,6.529e-05,2]
[405824835,1771341154977,500.0,6.529e-05,2]
[405824836,1771341155024,500.0,6.529e-05,2]
[405824837,1771341155071,500.0,6.529e-05,2]
[405824838,1771341155110,500.0,6.529e-05,2]
[405824839,1771341155151,500.0,6.529e-05,2]
[405824840,1771341155188,500.0,6.529e-05,2]
[405824841,1771341155238,150.69956919,6.529e-05,2]
[405824842,1771341155283,500.0,6.529e-05,2]
[405824843,1771341155332,500.0,6.529e-05,2]
[405824844,1771341155376,500.0,6.529e-05,2]
[405824845,1771341155428,496.75393707,6.529e-05,2]
[405824846,1771341155454,3.24606293,6.529e-05,2]
[405824847,1771341155496,500.0,6.529e-05,2]
[405824848,1771341155533,500.0,6.529e-05,2]
[405824849,1771341155583,500.0,6.529e-05,2]
[405824850,1771341155623,500.0,6.529e-05,2]
[405824851,1771341155671,500.0,6.529e-05,2]
[405824852,1771341155756,500.0,6.529e-05,2]
[405824853,1771341155809,500.0,6.529e-05,2]
[405824855,1771341307627,154.0,6.529e-05,3]
[405824857,1771341425793,-384.0,7.502e-05,2]
[405824864,1771341608414,154.0,6.529e-05,3]
[405824865,1771341772034,-384.0,7.534e-05,2]
[405824866,1771341772055,-214.0,7.534e-05,2]
[405824867,1771341772075,-250.0,7.536e-05,2]
[405824868,1771341772094,-193.0,7.538e-05,2]
[405824869,1771341772115,-384.0,7.542e-05,2]
[405824870,1771341772135,-250.0,7.596e-05,2]
[405824871,1771341772155,-384.0,7.678e-05,2]
[405824872,1771341772173,-384.0,7.689e-05,2]
[405824873,1771341772193,-384.0,7.692e-05,2]
[405824874,1771341772213,-252.28676486,7.7e-05,2]
[405824875,1771341772232,-384.0,7.729e-05,2]
[405824876,1771341772251,-384.0,7.771e-05,2]
[405824877,1771341772270,-384.0,7.853e-05,2]
[405824878,1771341772288,-384.0,7.871e-05,2]
[405824879,1771341772306,-384.0,7.887e-05,2]
[405824880,1771341772325,-0.71323514,7.914e-05,2]
[405824881,1771341802726,-383.28676486,7.914e-05,2]
[405824882,1771341802745,-250.0,7.923e-05,2]
[405824883,1771341802764,-459.0,7.932e-05,2]
[405824884,1771341802783,-1206.0,8.018e-05,2]
[405824885,1771341802802,-1712.0,8.034e-05,2]
[405824886,1771341802821,-989.71323514,8.178e-05,2]
[405824888,1771341913160,155.0,6.529e-05,3]
[405824970,1771342173928,-6368.42334905,7.376e-05,2]
[405824971,1771342173961,-7089.55665095,7.376e-05,2]
[405824972,1771342202656,-763.76,7.376e-05,2]
[405824973,1771342204116,213.0,7.376e-05,2]
[405824974,1771342210483,153.0,6.529e-05,3]
[405824976,1771342230632,-392.58581832,7.888e-05,2]
[405824977,1771342230660,-250.0,7.902e-05,2]
[405824978,1771342230689,-325.0,7.915e-05,2]
[405824979,1771342230722,-1200.0,7.999e-05,2]
[405824980,1771342230827,-15664.82836336,8e-05,2]
[405824991,1771342232312,-723.749995,8e-05,2]
[405824992,1771342232324,-1725.0,8e-05,2]
[405824993,1771342232335,-2255.84924183,8e-05,2]
[405824994,1771342232346,-1166.46,8e-05,2]
[405824995,1771342232360,-589.68154739,8e-05,2]
[405824996,1771342232372,-1388.91954942,8e-05,2]
[405824997,1771342232383,-129.07051229,8e-05,2]
[405824998,1771342232393,-397.20865916,8e-05,2]
[405824999,1771342232403,-558.07,8.038e-05,2]
[405825000,1771342232412,-959.7881,8.078e-05,2]
[405825001,1771342232422,-150.0,8.177e-05,2]
[405825002,1771342232431,-150.88771358,8.178e-05,2]
[405825031,1771342238274,-4069.67008128,8.178e-05,2]
[405825032,1771342238284,-266.58,8.2e-05,2]
[405825033,1771342238293,-1150.3712901,8.208e-05,2]
[405825034,1771342238305,-286.59884891,8.208e-05,2]
[405825035,1771342238316,-2955.50774909,8.208e-05,2]
[405825036,1771342238327,-3495607.5221119,8.208e-05,2]
[405825037,1771342238336,-6963.77975046,8.208e-05,2]
[405825038,1771342238346,-193.89094504,8.208e-05,2]
[405825039,1771342238355,-6247.97800355,8.208e-05,2]
[405825040,1771342238364,-38861.4057,8.209e-05,2]
[405825041,1771342238373,-6737.6189,8.209e-05,2]
[405825042,1771342238383,-550.336303,8.219e-05,2]
[405825043,1771342238392,-150.0,8.219e-05,2]
[405825044,1771342238402,-200.252612,8.219e-05,2]
[405825045,1771342238411,-250.505225,8.219e-05,2]
[405825046,1771342238421,-300.757838,8.219e-05,2]
[405825047,1771342238430,-351.010451,8.219e-05,2]
[405825048,1771342238439,-401.263064,8.219e-05,2]
[405825049,1771342238449,-451.515677,8.219e-05,2]
[405825050,1771342238458,-501.76829,8.219e-05,2]
[405825051,1771342238469,-552.020903,8.219e-05,2]
[405825052,1771342238480,-602.273516,8.219e-05,2]
[405825053,1771342238490,-297.511524,8.219e-05,2]
[405825054,1771342238499,-438.638787,8.219e-05,2]
[405825055,1771342238509,-1284.118041,8.219e-05,2]
[405825056,1771342238518,-150.0,8.219e-05,2]
[405825057,1771342238527,-311.700541,8.219e-05,2]
[405825058,1771342238537,-473.401082,8.219e-05,2]
[405825059,1771342238546,-635.101623,8.219e-05,2]
[405825060,1771342238558,-796.802165,8.219e-05,2]
[405825061,1771342238567,-958.502706,8.219e-05,2]
[405825062,1771342238577,-1120.203247,8.219e-05,2]
[405825063,1771342238586,-1281.903789,8.219e-05,2]
[405825064,1771342238599,-1443.60433,8.219e-05,2]
[405825065,1771342238608,-1605.304871,8.219e-05,2]
[405825066,1771342238618,-270.43,8.219e-05,2]
[405825067,1771342238627,-150.99,8.287e-05,2]
[405825068,1771342238637,-515.68,8.287e-05,2]
[405825069,1771342238646,-150.99,8.287e-05,2]
[405825070,1771342238656,-265.56589159,8.307e-05,2]
[405825071,1771342238665,-500.0,8.307e-05,2]
[405825072,1771342238674,-500.0,8.307e-05,2]
[405825073,1771342238973,-500.0,8.307e-05,2]
[405825074,1771342238983,-500.0,8.307e-05,2]
[405825075,1771342238992,-500.0,8.307e-05,2]
[405825076,1771342239002,-500.0,8.307e-05,2]
[405825077,1771342239014,-500.0,8.307e-05,2]
[405825078,1771342239023,-500.0,8.307e-05,2]
[405825079,1771342239032,-500.0,8.307e-05,2]
[405825080,1771342239042,-500.0,8.307e-05,2]
[405825081,1771342239052,-500.0,8.307e-05,2]
[405825082,1771342239062,-500.0,8.307e-05,2]
[405825083,1771342239071,-500.0,8.307e-05,2]
[405825084,1771342239081,-500.0,8.307e-05,2]
[405825085,1771342239090,-500.0,8.307e-05,2]
[405825087,1771342239100,-500.0,8.307e-05,2]
[405825088,1771342239110,-500.0,8.307e-05,2]
[405825089,1771342239120,-500.0,8.307e-05,2]
[405825090,1771342239130,-500.0,8.307e-05,2]
[405825091,1771342239139,-500.0,8.307e-05,2]
[405825092,1771342239149,-500.0,8.307e-05,2]
[405825093,1771342239158,-500.0,8.307e-05,2]
[405825094,1771342239167,-500.0,8.307e-05,2]
[405825095,1771342239177,-500.0,8.307e-05,2]
[405825096,1771342239186,-500.0,8.307e-05,2]
[405825097,1771342239196,-500.0,8.307e-05,2]
[405825098,1771342239205,-500.0,8.307e-05,2]
[405825099,1771342239215,-500.0,8.307e-05,2]
[405825100,1771342239225,-500.0,8.307e-05,2]
[405825101,1771342239234,-500.0,8.307e-05,2]
[405825102,1771342239244,-338.33476932,8.307e-05,2]
[405825103,1771342239253,-500.0,8.307e-05,2]
[405825104,1771342239264,-500.0,8.307e-05,2]
[405825105,1771342239274,-500.0,8.307e-05,2]
[405825107,1771342239283,-500.0,8.307e-05,2]
[405825109,1771342239293,-500.0,8.307e-05,2]
[405825111,1771342239302,-500.0,8.307e-05,2]
[405825113,1771342239311,-500.0,8.307e-05,2]
[405825115,1771342239321,-500.0,8.307e-05,2]
[405825117,1771342239330,-500.0,8.307e-05,2]
[405825119,1771342239339,-500.0,8.307e-05,2]
[405825121,1771342239348,-500.0,8.307e-05,2]
[405825123,1771342239357,-500.0,8.307e-05,2]
[405825125,1771342239366,-500.0,8.307e-05,2]
[405825127,1771342239376,-500.0,8.307e-05,2]
[405825129,1771342239385,-500.0,8.307e-05,2]
[405825131,1771342239394,-500.0,8.307e-05,2]
[405825133,1771342239404,-500.0,8.307e-05,2]
[405825135,1771342239414,-500.0,8.307e-05,2]
[405825137,1771342239423,-450.0,8.307e-05,2]
[405825139,1771342239432,-500.0,8.307e-05,2]
[405825141,1771342239441,-500.0,8.307e-05,2]
[405825143,1771342239450,-500.0,8.307e-05,2]
[405825145,1771342239460,-500.0,8.307e-05,2]
[405825147,1771342239470,-500.0,8.307e-05,2]
[405825149,1771342239481,-500.0,8.307e-05,2]
[405825151,1771342239492,-191.85536725,8.308e-05,2]
[405825153,1771342239502,-500.0,8.308e-05,2]
[405825155,1771342239511,-500.0,8.308e-05,2]
[405825157,1771342239521,-500.0,8.308e-05,2]
[405825159,1771342239530,-500.0,8.308e-05,2]
[405825161,1771342239539,-337.12756624,8.308e-05,2]
[405825164,1771342239549,-522.67,8.308e-05,2]
[405825165,1771342239559,-222600.53,8.309e-05,2]
[405825168,1771342239569,-212.0,8.34e-05,2]
[405825170,1771342239579,-500.0,8.356e-05,2]
[405825172,1771342239588,-309.0,8.356e-05,2]
[405825173,1771342239598,-9999.99,8.356e-05,2]
[405825175,1771342239607,-9999.99,8.356e-05,2]
[405825176,1771342239617,-43057.18,8.356e-05,2]
[405825177,1771342239626,-14037.81,8.356e-05,2]
[405825178,1771342239635,-1542.1,8.356e-05,2]
[405825179,1771342239644,-999.99,8.356e-05,2]
[405825180,1771342239653,-9999.99,8.356e-05,2]
[405825181,1771342239662,-81423.96,8.356e-05,2]
[405825182,1771342239671,-4999.99,8.356e-05,2]
[405825183,1771342239680,-499.99,8.356e-05,2]
[405825184,1771342239690,-3706.48,8.356e-05,2]
[405825185,1771342239699,-7136.18,8.356e-05,2]
[405825186,1771342239708,-83420.67,8.356e-05,2]
[405825187,1771342239718,-9999.99,8.356e-05,2]
[405825188,1771342239727,-761.78,8.356e-05,2]
[405825189,1771342239736,-9999.99,8.356e-05,2]
[405825190,1771342239745,-299.99,8.356e-05,2]
[405825191,1771342239755,-9999.99,8.356e-05,2]
[405825192,1771342239764,-29124.47,8.356e-05,2]
[405825193,1771342239773,-403.0,8.373e-05,2]
[405825194,1771342239782,-153.0,8.389e-05,3]
[405825195,1771342239791,-401.0,8.39e-05,2]
[405825196,1771342239801,-398.0,8.406e-05,2]
[405825197,1771342239811,-684.0,8.418e-05,2]
[405825198,1771342239820,-415.0,8.423e-05,2]
[405825199,1771342239829,-935.0,8.431e-05,2]
[405825200,1771342239838,-357.0,8.44e-05,2]
[405825201,1771342239848,-173.0,8.448e-05,2]
[405825202,1771342239857,-441.0,8.456e-05,2]
[405825203,1771342239866,-1305.0,8.464e-05,2]
[405825204,1771342239876,-178.0,8.473e-05,2]
[405825205,1771342239885,-767.0,8.481e-05,2]
[405825206,1771342239894,-259.0,8.489e-05,2]
[405825207,1771342239903,-188.0,8.506e-05,2]
[405825208,1771342239913,-309.0,8.523e-05,2]
[405825209,1771342239922,-487.0,8.539e-05,2]
[405825210,1771342239933,-522.67,8.582e-05,2]
[405825211,1771342239943,-500.0,8.63e-05,2]
[405825212,1771342239952,-180.0,8.63e-05,2]
[405825213,1771342239962,-270.43,8.676e-05,2]
[405825214,1771342239973,-250.0,8.677e-05,2]
[405825215,1771342239983,-250.0,8.707e-05,2]
[405825216,1771342239992,-1680.0,8.799e-05,2]
[405825217,1771342240002,-522.67,8.856e-05,2]
[405825218,1771342240012,-500.0,8.904e-05,2]
[405825219,1771342240021,-1500.0,8.91e-05,2]
[405825220,1771342240031,-255.0,8.994e-05,2]
[405825221,1771342240041,-522.67,9.13e-05,2]
[405825222,1771342240050,-270.43,9.132e-05,2]
[405825223,1771342240061,-500.0,9.178e-05,2]
[405825224,1771342240070,-10970.655449,9.358e-05,2]
[405825225,1771342240079,-1605.147551,9.37e-05,2]
[405825227,1771342240088,-522.67490725,9.404e-05,2]
[405825228,1771342240098,-500.0,9.452e-05,2]
[405825229,1771342240107,-4701.709479,9.469e-05,2]
[405825230,1771342240117,-258.483569,9.471e-05,2]
[405825232,1771342240127,-687.920379,9.471e-05,2]
[405825233,1771342240136,-270.43,9.589e-05,2]
[405825234,1771342240145,-2351.0,9.679e-05,2]
[405825235,1771342240155,-500.0,9.726e-05,2]
[405825236,1771342240164,-200.0,9.837e-05,2]
[405825237,1771342240173,-433.0,9.894e-05,2]
[405825238,1771342240183,-231.0,9.989e-05,2]
[405825239,1771342240192,-231.0,9.989e-05,2]
[405825240,1771342240201,-231.0,9.989e-05,2]
[405825241,1771342240211,-231.0,9.989e-05,2]
[405825242,1771342240221,-231.0,9.989e-05,2]
[405825243,1771342240231,-231.0,9.989e-05,2]
[405825244,1771342240240,-231.0,9.989e-05,2]
[405825245,1771342240250,-231.0,9.989e-05,2]
[405825246,1771342240259,-231.0,9.989e-05,2]
[405825247,1771342240269,-500.0,0.0001,2]
[405825248,1771342240279,-500.0,0.0001,2]
[405825249,1771342240288,-500.0,0.0001,2]
[405825250,1771342240298,-500.0,0.0001,2]
[405825251,1771342240307,-500.0,0.0001,2]
[405825252,1771342240317,-500.0,0.0001,2]
[405825253,1771342240327,-500.0,0.0001,2]
[405825254,1771342240336,-500.0,0.0001,2]
[405825255,1771342240346,-500.0,0.0001,2]
[405825256,1771342240356,-500.0,0.0001,2]
[405825257,1771342240365,-500.0,0.0001,2]
[405825258,1771342240374,-500.0,0.0001,2]
[405825259,1771342240384,-200.0,0.0001,2]
[405825260,1771342240393,-151.0,0.0001,2]
[405825261,1771342240403,-151.0,0.0001,2]
[405825262,1771342240413,-151.0,0.0001,2]
[405825263,1771342240422,-151.0,0.0001,2]
[405825264,1771342240432,-151.0,0.0001,2]
[405825265,1771342240442,-151.0,0.0001,2]
[405825266,1771342240451,-151.0,0.0001,2]
[405825267,1771342240461,-500.0,0.0001,2]
[405825268,1771342240472,-500.0,0.0001,2]
[405825269,1771342240482,-500.0,0.0001,2]
[405825270,1771342240494,-500.0,0.0001,2]
[405825271,1771342240504,-500.0,0.0001,2]
[405825272,1771342240513,-500.0,0.0001,2]
[405825273,1771342240522,-500.0,0.0001,2]
[405825274,1771342240535,-500.0,0.0001,2]
[405825275,1771342240544,-500.0,0.0001,2]
[405825276,1771342240555,-200.0,0.0001,2]
[405825277,1771342240564,-500.0,0.0001,2]
[405825278,1771342240574,-500.0,0.0001,2]
[405825279,1771342240583,-151.0,0.0001,2]
[405825280,1771342240593,-151.0,0.0001,2]
[405825281,1771342240602,-151.0,0.0001,2]
[405825282,1771342240612,-151.0,0.0001,2]
[405825283,1771342240621,-151.0,0.0001,2]
[405825284,1771342240631,-151.0,0.0001,2]
[405825285,1771342240640,-151.0,0.0001,2]
[405825286,1771342240650,-151.0,0.0001,2]
[405825287,1771342240659,-151.0,0.0001,2]
[405825288,1771342240669,-500.0,0.0001,2]
[405825289,1771342240678,-151.0,0.0001,2]
[405825290,1771342240687,-151.0,0.0001,2]
[405825291,1771342240697,-151.0,0.0001,2]
[405825292,1771342240706,-151.0,0.0001,2]
[405825293,1771342240717,-151.0,0.0001,2]